Cogmind - Beta 9.4 @@@ ROGUE MODE // 2020.03.03 @ 22:19:17 Player: Finestep Result: Destroyed by Y-45 Defender with Beam Rifle Performance ------------- Evolutions (2) 1000 Regions Visited (9) 1800 Robots Destroyed (173) 865 Value Destroyed (4464) 4464 Prototype IDs (37) 740 Alien Tech Used (0) 0 Bonus (278) 278 TOTAL SCORE: 9147 Bonus ------- High Alert Combat Kills 111 Follower Combat Kills 60 Entered Garrisons 200 Used RIF Installer 500 Friendly Fire -593 Cogmind --------- Core Integrity 0/550 Matter 250/300 Energy 275/290 System Corruption 2% Temperature Cool (9) Movement Rolling (100) Ox1 Location -8/Materials Parts ------- > --- POWER (1) -------- Improved Deuterium Engine > --- PROPULSION (3) --- Armored Wheel Armored Wheel Armored Wheel > --- UTILITY (5) ------ Improved Cooling System Large Storage Unit Large Storage Unit Large Storage Unit Relay Coupler [Sentry] (13) > --- WEAPON (2) ------- Heavy Particle Gun Datajack > --- INVENTORY (22) --- Improved Deuterium Engine Armored Wheel Armored Wheel Improved Flight Unit Improved Flight Unit Improved VTOL Module Improved Cooling System Advanced Visual Processing Unit Experimental Sensor Array Improved Signal Interpreter Advanced Terrain Scanner Transport Network Coupler Makeshift Cloaking Device Medium Reactive Plating Hacking Suite Hacking Suite Hacking Suite System Shield Missile Launcher Field Lobotomy Kit Katana Peak State ------------ > --- POWER ------------ Light Nuclear Core > --- PROPULSION ------- Carbon-fiber Leg Carbon-fiber Leg Carbon-fiber Leg > --- UTILITY ---------- Advanced Heat Sink Large Storage Unit Humpback Medium Reactive Plating > --- WEAPON ----------- Minigun Minigun > --- INVENTORY -------- Makeshift Power Source Armored Treads Improved Flight Unit Improved Flight Unit Improved Flight Unit Improved VTOL Module Improved VTOL Module Improved Heat Sink Medium Storage Unit Large Storage Unit Large Storage Unit Humpback Advanced Visual Processing Unit Experimental Sensor Array Improved Signal Interpreter Advanced Terrain Scanner Transport Network Coupler Makeshift Cloaking Device Medium Reactive Plating Medium Reactive Plating Hacking Suite Hacking Suite Hacking Suite EM Pulse Cannon EM Pulse Cannon Missile Launcher Datajack Field Lobotomy Kit Mining Laser [Rating: 39] Favorites ----------- Power Light Nuclear Core Engine Light Ion Engine Power Core Light Nuclear Core Propulsion Light Treads Treads Light Treads Leg Carbon-fiber Leg Wheel Armored Wheel Flight Unit Improved Flight Unit Utility Large Storage Unit Device Advanced Heat Sink Storage Large Storage Unit Hackware Relay Coupler [Grunt] Protection Hardened Light Armor Plating Weapon Assault Cannon Energy Gun Improved Medium Laser Energy Cannon Beam Cannon Ballistic Gun Minigun Ballistic Cannon Assault Cannon Launcher Missile Launcher Special Weapon Mining Laser Slashing Weapon Katana Special Melee Weapon Datajack Build | -11 -10 -10 -9 -9 -9 -8 -8 -8 -8 ------- Run | Scr Mat Min Mat Min Exi Min Mat Gar Mat Slots Evolved 4 | . . . 2 . . . 2 . . Power . | . . . . . . . . . . Propulsion 1 | . . . . . . . 1 . . Utility 3 | . . . 2 . . . 1 . . Weapon . | . . . . . . . . . . Parts Attached 151 | 7 21 10 30 . 4 8 36 30 5 Power 15 | 1 1 1 2 . 1 2 5 1 1 Engine 8 | 1 1 1 1 . 1 1 . 1 1 Core 7 | . . . 1 . . 1 5 . . Reactor . | . . . . . . . . . . Propulsion 52 | 2 5 2 14 . . 4 14 11 . Treads 25 | . 5 1 11 . . 2 6 . . Leg 15 | . . . 2 . . 2 3 8 . Wheel 10 | 2 . 1 . . . . 4 3 . Hover . | . . . . . . . . . . Flight 2 | . . . 1 . . . 1 . . Utility 34 | 1 4 . 7 . 2 2 5 11 2 Device 7 | . . . 2 . . 2 . 2 1 Storage 15 | 1 4 . 2 . 1 . 2 5 . Processor . | . . . . . . . . . . Hackware 2 | . . . . . . . . 1 1 Protection 10 | . . . 3 . 1 . 3 3 . Artifact . | . . . . . . . . . . Weapon 50 | 3 11 7 7 . 1 . 12 7 2 Energy Gun 10 | 2 1 . 1 . 1 . 4 . 1 Energy Cannon 7 | . 1 1 1 . . . 4 . . Ballistic Gun 14 | 1 6 2 . . . . 2 3 . Ballistic Cannon 8 | . 1 2 5 . . . . . . Launcher 2 | . . . . . . . 1 1 . Special Weapon 5 | . 2 2 . . . . 1 . . Impact Weapon . | . . . . . . . . . . Slashing Weapon 1 | . . . . . . . . 1 . Piercing Weapon . | . . . . . . . . . . Special Melee Weapon 3 | . . . . . . . . 2 1 Unidentified Prototypes 6 | . . . 2 . . . 3 . 1 Parts Lost 22 | . . 1 3 . . 1 5 12 . Power 2 | . . . . . . 1 1 . . Propulsion 9 | . . . 2 . . . . 7 . Utility 4 | . . . . . . . 1 3 . Weapon 7 | . . 1 1 . . . 3 2 . Highest Loss Streak 12 | . . 1 2 . . 1 3 12 . Average Slot Usage (%) 95 | . 96 100 99 100 98 87 89 85 92 Engine 5 | . 14 14 6 . 6 6 . . 9 Core 5 | . . . 4 11 4 4 9 8 . Treads 16 | . 22 19 15 22 22 21 13 . . Leg 3 | . . . 4 . . . 3 21 . Wheel 4 | . 5 8 1 . . . 9 3 27 Device 4 | . . . 7 . . 8 9 4 9 Storage 24 | . 24 28 25 33 32 22 18 20 27 Protection 6 | . . . 10 11 10 2 8 4 . Energy Gun 3 | . 2 . . . 9 11 6 . 2 Energy Cannon 4 | . 8 13 3 . . . 4 . . Ballistic Gun 3 | . 13 1 . . . . 6 10 . Ballistic Cannon 9 | . 2 12 18 22 12 11 . . . Naked Turns . | . . . . . . . . . . Heaviest Build 128 | 11 42 42 68 66 116 116 128 128 65 Greatest Support 63 | 32 40 40 43 43 43 43 63 45 36 Greatest Overweight (x) 42 | 1 1 4 4 1 2 7 42 3 1 Average Overweight (x) 1 | . . 3 1 1 1 2 3 1 1 Largest Inventory Capacity 36 | 6 16 16 22 22 36 30 30 30 22 Average Capacity 21 | 5 10 16 17 22 22 30 30 26 22 Most Carried 30 | 6 16 16 22 22 26 26 30 30 22 Average Carried 20 | 3 9 15 17 22 22 25 29 24 21 Final Capacity 30 | 6 16 16 22 22 30 30 30 22 22 Final Carried 30 | 6 16 16 22 22 25 26 30 22 21 Class Distribution -------------------- 60% | Hauler-Mutant 37% | Mutant Dominant Class ---------------- Mutant | -10/Materials Mutant | -10/Mines Mutant | -9/Materials Hauler-Mutant | -9/Mines Hauler-Mutant | -9/Exiles Hauler-Mutant | -8/Mines Hauler-Mutant | -8/Materials Hauler-Mutant | -8/Garrison Scavenger-Mutant | -8/Materials Resources | -11 -10 -10 -9 -9 -9 -8 -8 -8 -8 ----------- Run | Scr Mat Min Mat Min Exi Min Mat Gar Mat Matter Collected 3921 | 151 816 256 936 286 65 151 719 541 . Remotely . | . . . . . . . . . . Salvage Created 6337 | 117 879 425 1307 186 32 358 2128 905 . Parts 359 | 8 55 25 87 4 1 13 130 36 . Haulers Intercepted 12 | . 1 . 5 . . . 6 . . Recyclers Shooed 6 | . 1 1 1 2 . . 1 . . Parts Field Recycled . | . . . . . . . . . . Retrieved Matter . | . . . . . . . . . . Parts Self-Destructed . | . . . . . . . . . . Prevented . | . . . . . . . . . . Kills | -11 -10 -10 -9 -9 -9 -8 -8 -8 -8 ------- Run | Scr Mat Min Mat Min Exi Min Mat Gar Mat Combat Hostiles Destroyed 107 | . 16 10 26 2 . 6 35 12 . Melee 2 | . . . . . . . . 2 . Guns 38 | . 9 2 . . . 3 16 8 . Cannons 54 | . 7 8 26 2 . 1 10 . . AOE 11 | . . . . . . 2 7 2 . Classes Destroyed 13 | 2 6 . 2 1 . 2 . . . Worker 7 | . 3 1 2 . . . 1 . . Builder 6 | . . . 3 1 . . 2 . . Tunneler 8 | 3 . 1 . . . . 4 . . Hauler 12 | . 1 . 5 . . . 6 . . Recycler 15 | 1 4 2 4 2 . . 2 . . Operator 7 | . 1 . 3 . . . 3 . . Watcher 8 | . 3 . 3 . . . 2 . . Swarmer 30 | . 6 3 9 . . . 9 3 . Grunt 59 | . 10 7 10 1 . 7 16 8 . Brawler 1 | . . . . 1 . . . . . Duelist 2 | . . . . . . 1 1 . . Sentry 15 | . . . 7 . . . 8 . . Hunter 3 | . . . . . . 1 1 1 . Best Kill Streak 8 | 4 6 4 5 2 . 3 8 3 . Combat Bots Only 5 | . 3 3 5 2 . 3 5 3 . Max Kills in Single Turn 7 | 1 2 2 2 1 . 5 7 2 . Gunslinging . | . . . . . . . . . . Exploded 5 | . . . . . . 2 5 2 . Melee 1 | . . . . . . . . 1 . Uniques/NPCs Destroyed . | . . . . . . . . . . Combat | -11 -10 -10 -9 -9 -9 -8 -8 -8 -8 -------- Run | Scr Mat Min Mat Min Exi Min Mat Gar Mat Damage Taken 6389 | . 334 519 820 89 . 454 1778 2271 124 Core 888 | . 59 71 68 . . 129 184 325 52 Absorbed by Shields . | . . . . . . . . . . Core Remaining (%) 66 | 100 . 48 . . . 50 . . . Volleys Fired 432 | 9 73 51 107 12 6 15 122 36 1 Largest 2 | 2 2 2 2 2 2 2 2 2 1 Hottest 131 | 70 100 100 99 88 100 100 131 50 55 Shots Fired 830 | 18 145 84 212 24 12 30 239 65 1 Gun 369 | 18 95 7 . . 3 15 167 63 1 Cannon 447 | . 49 68 212 24 9 15 70 . . Launcher 3 | . . . . . . . 1 2 . Special 11 | . 1 9 . . . . 1 . . Kinetic 513 | 9 95 43 170 24 9 15 85 63 . Thermal 244 | 9 50 41 42 . 3 15 83 . 1 Explosive 3 | . . . . . . . 1 2 . Electromagnetic 70 | . . . . . . . 70 . . Robot Hit Streak 27 | 4 11 8 10 8 2 10 27 15 4 Robot Miss Streak 6 | 2 5 4 6 1 1 2 5 2 . Penetration Max . | . . . . . . . . . . Secondary Targets 4 | . 2 . . . . . 1 1 . Max Gunslinging Chain 1 | . 1 . . . . . 1 1 . Shots Hit Robots 539 | 10 83 36 116 18 3 21 176 75 1 Core Hits 247 | 5 35 16 51 6 1 14 84 34 1 Critical Hits 9 | . 1 1 1 1 1 . 3 1 . Critical Kills 3 | . . 1 . 1 . . 1 . . Critical Parts Destroyed 5 | . 1 . 1 . 1 . 2 . . Melee Attacks 41 | . . . . . . . . 41 . Impact . | . . . . . . . . . . Slashing 36 | . . . . . . . . 36 . Piercing . | . . . . . . . . . . Sneak Attacks 1 | . . . . . . . . 1 . Combat Hostiles . | . . . . . . . . . . Follow-up Attacks . | . . . . . . . . . . Damage Inflicted 13275 | 133 1197 653 2567 483 109 895 4117 3104 17 Guns 3711 | 133 577 107 . . . 221 2001 655 17 Cannons 5717 | . 619 546 2567 483 109 220 1173 . . Explosions 1707 | . . . . . . 454 943 310 . Melee 2139 | . . . . . . . . 2139 . Ramming 1 | . 1 . . . . . . . . Kinetic 5489 | 60 652 373 2050 483 109 220 887 655 . Thermal 3971 | 73 544 280 517 . . 675 1865 . 17 Explosive 586 | . . . . . . . 276 310 . Electromagnetic 1089 | . . . . . . . 1089 . . Impact . | . . . . . . . . . . Slashing 2139 | . . . . . . . . 2139 . Piercing . | . . . . . . . . . . Highest Corruption 2 | . . . . . . . 2 2 2 Average Corruption 2 | . . . . . . . 2 2 2 Corruption Purged . | . . . . . . . . . . Effects 27 | . . . . . . . 14 12 1 Message Errors 9 | . . . . . . . 3 6 . Heat Flow Errors 4 | . . . . . . . 4 . . Energy Discharges 4 | . . . . . . . 1 2 1 Data Loss (minor) 5 | . . . . . . . 3 2 . Targeting Errors 3 | . . . . . . . 1 2 . Weapon Failures 2 | . . . . . . . 2 . . Overload Shots . | . . . . . . . . . . Overflow Damage 522 | . 4 45 53 14 2 6 91 307 . Projectiles 138 | . 4 45 53 14 2 6 14 . . Explosions 77 | . . . . . . . 77 . . Melee 307 | . . . . . . . . 307 . Knockbacks 24 | . 2 1 11 7 . 3 . . . Impact . | . . . . . . . . . . Kinetic 23 | . 2 1 11 6 . 3 . . . Secondary 1 | . . . . 1 . . . . . Self-Inflicted Damage 334 | . . . . . . 178 145 11 . Shots 9 | . . . . . . 4 4 1 . Rammed 1 | . 1 . . . . . . . . Targets Rammed 1 | . 1 . . . . . . . . Kicked . | . . . . . . . . . . Crushed . | . . . . . . . . . . Highest Temperature 388 | 63 264 304 388 164 101 203 300 80 . Average Temperature 79 | 27 63 111 96 61 51 68 56 31 . Received Heat Transfer 2112 | . 120 222 258 . . 144 666 666 36 Effects 5 | . . 1 4 . . . . . . Shutdowns 1 | . . . 1 . . . . . . Energy Bleed 3 | . . 1 2 . . . . . . Interference 1 | . . . 1 . . . . . . Siege Activations . | . . . . . . . . . . Robots Corrupted 1 | . . . . . . . 1 . . Combat Hostiles 1 | . . . . . . . 1 . . Parts Fried 8 | . . . . . . . 8 . . Impact Corruptions . | . . . . . . . . . . Robots Melted 1 | . . . . . . . 1 . . Combat Hostiles 1 | . . . . . . . 1 . . Parts Melted 9 | 1 1 . 2 . . . 5 . . Heat Transferred 7220 | 222 1221 592 1073 . . 1131 2944 . 37 Parts Sabotaged . | . . . . . . . . . . Parts Stolen . | . . . . . . . . . . Parts Stripped . | . . . . . . . . . . Power Chain Reactions 4 | . . . . . . . 4 . . Missiles Intercepted . | . . . . . . . . . . Alert | -11 -10 -10 -9 -9 -9 -8 -8 -8 -8 ------- Run | Scr Mat Min Mat Min Exi Min Mat Gar Mat Peak Influence 521 | 20 310 257 469 207 . 219 468 521 271 Average Influence 188 | 6 154 118 176 104 . 127 211 422 257 Maximum Alert Level 2 | . 1 1 2 1 . 1 2 2 1 Low Security (%) 64 | 100 80 92 66 95 . 91 52 . . Level 1 24 | . 19 7 20 4 . 8 44 27 100 Level 2 10 | . . . 13 . . . 3 72 . Level 3 . | . . . . . . . . . . Level 4 . | . . . . . . . . . . Level 5 . | . . . . . . . . . . High Security . | . . . . . . . . . . Max Security . | . . . . . . . . . . Squads Dispatched 17 | . 6 . 5 . . . 6 . . Investigation 8 | . 4 . 2 . . . 2 . . Extermination . | . . . . . . . . . . Reinforcement 9 | . 2 . 3 . . . 4 . . Assault . | . . . . . . . . . . Garrison . | . . . . . . . . . . Intercept . | . . . . . . . . . . Construction Impeded . | . . . . . . . . . . Haulers Reinforced . | . . . . . . . . . . Stealth | -11 -10 -10 -9 -9 -9 -8 -8 -8 -8 --------- Run | Scr Mat Min Mat Min Exi Min Mat Gar Mat Distress Signals 6 | . . 1 1 . . . 4 . . Communications Jammed . | . . . . . . . . . . Distress Signals . | . . . . . . . . . . Times Spotted 175 | . 25 10 53 2 . 7 56 19 3 Peak Tracking Total 7 | . 3 3 5 2 . 3 7 5 3 Tactical Retreats 13 | . . . 5 . . 1 5 2 . Traps | -11 -10 -10 -9 -9 -9 -8 -8 -8 -8 ------- Run | Scr Mat Min Mat Min Exi Min Mat Gar Mat Traps Triggered 7 | . 1 . 2 . . . . 4 . Indirectly . | . . . . . . . . . . Trap Hack Attempts . | . . . . . . . . . . Triggered . | . . . . . . . . . . Disarmed . | . . . . . . . . . . Reprogrammed 6 | . . . 6 . . . . . . Reused 3 | . . . 3 . . . . . . Traps Extracted . | . . . . . . . . . . Installed . | . . . . . . . . . . Triggered 3 | . . . 3 . . . . . . Machines | -11 -10 -10 -9 -9 -9 -8 -8 -8 -8 ---------- Run | Scr Mat Min Mat Min Exi Min Mat Gar Mat Machines Disabled 23 | . 2 4 5 . . 6 5 1 . Max in Single Turn 6 | . 1 1 1 . . 6 3 1 . Garrison Relay 1 | . . . . . . . . 1 . Machines Sabotaged . | . . . . . . . . . . Garrisons Compromised . | . . . . . . . . . . Overloaded Fab Kills . | . . . . . . . . . . Fab Network Shutdowns . | . . . . . . . . . . Hacking | -11 -10 -10 -9 -9 -9 -8 -8 -8 -8 --------- Run | Scr Mat Min Mat Min Exi Min Mat Gar Mat Machines Accessed 38 | . 8 2 13 . 2 . 12 . 1 Terminals 25 | . 6 1 10 . . . 7 . 1 Fabricators . | . . . . . . . . . . Repair Stations 2 | . . . . . . . 2 . . Recycling Units 5 | . 2 . 2 . . . 1 . . Scanalyzers 2 | . . . 1 . . . 1 . . Garrison Access 1 | . . . . . . . 1 . . Total Hacks 106 | . 21 3 38 . 6 . 34 . 4 Successful 69 | . 12 3 26 . 6 . 19 . 3 Failed 36 | . 8 . 12 . . . 15 . 1 Catastrophic 2 | . . . 1 . . . 1 . . Database Lockouts 1 | . 1 . . . . . . . . Manual 58 | . 17 2 23 . 1 . 13 . 2 Terminals 76 | . 17 2 31 . . . 22 . 4 Fabricators . | . . . . . . . . . . Repair Stations 3 | . . . . . . . 3 . . Recycling Units 11 | . 4 . 4 . . . 3 . . Scanalyzers 6 | . . . 3 . . . 3 . . Garrison Access 3 | . . . . . . . 3 . . Terminal Hacks 36 | . 5 3 11 . 6 . 9 . 2 Record 5 | . . . . . 5 . . . . Robot Analysis 5 | . 2 2 . . . . 1 . . Prototype ID Bank 4 | . . . 1 . . . 2 . 1 Open Door 1 | . . 1 . . . . . . . Branch Access Points 1 | . . . 1 . . . . . . Terminal Index 2 | . . . 1 . . . 1 . . Alert Level 2 | . . . . . . . 2 . . Unreport Threat 4 | . . . 2 . . . 2 . . Locate Traps 3 | . 1 . 2 . . . . . . Reprogram Traps 1 | . . . 1 . . . . . . Recall Investigation 1 | . 1 . . . . . . . . Registered Components 1 | . . . 1 . . . . . . Zone Layout 5 | . 1 . 2 . . . 1 . 1 EX-Prototype ID Bank 1 | . . . . . 1 . . . . Fabricator Hacks . | . . . . . . . . . . Repair Station Hacks 2 | . . . . . . . 2 . . Scan Component 1 | . . . . . . . 1 . . Repair 1 | . . . . . . . 1 . . Recycling Unit Hacks 3 | . 2 . 1 . . . . . . Retrieve Components 3 | . 2 . 1 . . . . . . Scanalyzer 5 | . . . 3 . . . 2 . . Insert Component 2 | . . . 1 . . . 1 . . Analyze 3 | . . . 2 . . . 1 . . Garrison Access Hacks 1 | . . . . . . . 1 . . Unlock Access 1 | . . . . . . . 1 . . Unauthorized Hacks 58 | . 15 . 28 . . . 13 . 2 Terminals 16 | . 3 . 9 . . . 3 . 1 Track 4 | . 1 . 3 . . . . . . Botnet 12 | . 2 . 6 . . . 3 . 1 Fabricators . | . . . . . . . . . . Repair Stations . | . . . . . . . . . . Recycling Units 5 | . 2 . 2 . . . 1 . . Tunnel 5 | . 2 . 2 . . . 1 . . Scanalyzers . | . . . . . . . . . . Garrison Access 1 | . . . . . . . 1 . . Eject 1 | . . . . . . . 1 . . Data Cores Recovered 1 | . . . 1 . . . . . . Used . | . . . . . . . . . . Hacking Detections 30 | . 6 1 12 . . . 11 . . Full Trace Events 1 | . . . 1 . . . . . . Feedback Events . | . . . . . . . . . . Feedback Blocked . | . . . . . . . . . . Robot Schematics Acquired . | . . . . . . . . . . Robots Built . | . . . . . . . . . . Matter . | . . . . . . . . . . Time . | . . . . . . . . . . Total Robot Build Rating . | . . . . . . . . . . Part Schematics Acquired 2 | . . . 1 . . . 1 . . Parts Built . | . . . . . . . . . . Matter . | . . . . . . . . . . Time . | . . . . . . . . . . Total Part Build Rating . | . . . . . . . . . . Parts Repaired 1 | . . . . . . . 1 . . Time 40 | . . . . . . . 40 . . Parts Recycled . | . . . . . . . . . . Recycled Matter . | . . . . . . . . . . Retrieved Matter . | . . . . . . . . . . Retrieved Components 24 | . 15 . 9 . . . . . . Parts Scanalyzed 2 | . . . 1 . . . 1 . . Part Schematics Acquired 2 | . . . 1 . . . 1 . . Parts Damaged . | . . . . . . . . . . Bothacking | -11 -10 -10 -9 -9 -9 -8 -8 -8 -8 ------------ Run | Scr Mat Min Mat Min Exi Min Mat Gar Mat Used RIF Installer 1 | . . . . . . . . 1 . Robots Hacked 3 | . . . . . . . . 3 . Non-combat . | . . . . . . . . . . Combat 3 | . . . . . . . . 3 . Robot Hacks Applied 3 | . . . . . . . . 3 . spike_heat 1 | . . . . . . . . 1 . overwrite_iff 1 | . . . . . . . . 1 . formatsys_high 1 | . . . . . . . . 1 . Relay Couplers Released 6 | . . . . . . . 3 3 . Ejected 3 | . . . . . . . 3 . . Machine Destruction 3 | . . . . . . . . 3 . Attached 2 | . . . . . . . . 1 1 Robots Rewired 3 | . . . . . 3 . . . . Allies Hacked . | . . . . . . . . . . Hacks Repelled . | . . . . . . . . . . Allies | -11 -10 -10 -9 -9 -9 -8 -8 -8 -8 -------- Run | Scr Mat Min Mat Min Exi Min Mat Gar Mat Total Allies 8 | . . . . 3 3 . . 2 . Largest Group 5 | . . . . 3 5 5 . 1 . Highest-Rated Group 61 | . . . . 40 61 61 . 29 . Highest-Rated Ally 29 | . . . . 16 21 21 . 29 . Total Orders . | . . . . . . . . . . Ally Attacks 27 | . . . . 10 . 11 . 6 . Total Damage 260 | . . . . 116 . 105 . 39 . Kills 2 | . . . . 2 . . . . . Allies Corrupted 1 | . . . . 1 . . . . . Allies Melted . | . . . . . . . . . . Intel | -11 -10 -10 -9 -9 -9 -8 -8 -8 -8 ------- Run | Scr Mat Min Mat Min Exi Min Mat Gar Mat Robot Analysis Total 5 | . 2 2 . . . . 1 . . Derelict Logs Recovered 5 | . . 2 . 3 . . . . . Drone Launches . | . . . . . . . . . . Drone Recoveries . | . . . . . . . . . . Exploration | -11 -10 -10 -9 -9 -9 -8 -8 -8 -8 ------------- Run | Scr Mat Min Mat Min Exi Min Mat Gar Mat Turns Passed 9731 | 89 1175 956 2042 671 1296 502 2128 769 103 Spaces Moved 4847 | 47 570 554 996 350 685 220 1043 301 81 Core 8 | 7 . . . . . . 1 . . Treads 2733 | . 411 167 609 350 685 216 295 . . Legs 555 | . . . 196 . . 4 126 229 . Wheels 1551 | 40 159 387 191 . . . 621 72 81 Hover . | . . . . . . . . . . Flight . | . . . . . . . . . . Fastest Speed 50 | 50 100 120 120 180 180 200 130 100 100 Average Speed 160 | 97 148 137 164 180 181 201 155 158 100 Slowest Speed 2150 | 100 180 200 200 180 200 330 2150 210 100 Overloaded Moves . | . . . . . . . . . . Propulsion Burnouts . | . . . . . . . . . . Robots Hopped . | . . . . . . . . . . Cave-ins Triggered . | . . . . . . . . . . Exploration Rate (%) 57 | 4 88 96 79 71 94 28 66 39 10 Regions Visited 9 Branch Regions 4 Pre-discovered Areas 8 | . 2 1 2 1 1 . 1 . . Known Exits Taken 2 | . . . 1 . . . 1 . . Unknown Exits Taken 6 | 1 1 1 . 1 1 1 . . . Scrap Searched 2 | . . 2 . . . . . . . Spaces Dug 10 | . 1 3 2 . 1 . 1 2 . Terrain Destroyed 121 | . 3 4 31 3 1 35 38 6 . Melee . | . . . . . . . . . . Projectile 54 | . 3 4 31 3 1 2 10 . . AOE 67 | . . . . . . 33 28 6 . Actions | -11 -10 -10 -9 -9 -9 -8 -8 -8 -8 --------- Run | Scr Mat Min Mat Min Exi Min Mat Gar Mat Total 5935 | 68 764 647 1192 368 733 248 1330 478 107 Wait 186 | . 58 21 19 5 2 . 69 1 11 Move 4837 | 46 569 553 995 349 684 219 1042 299 81 Hop . | . . . . . . . . . . Pick Up 128 | 6 19 5 17 1 17 . 24 36 3 Fast Attach 60 | 6 5 2 11 . . 6 18 10 2 Attach 34 | . 3 2 7 . 4 1 8 8 1 Detach 7 | . 2 . 3 . . 1 1 . . Swap 58 | 1 13 6 12 . . 1 11 12 2 Drop 118 | . 21 7 21 1 10 5 35 12 6 Fire 432 | 9 73 51 107 12 6 15 122 36 1 Melee 41 | . . . . . . . . 41 . Ram . | . . . . . . . . . . Kick . | . . . . . . . . . . Crush 1 | . 1 . . . . . . . . Escape Stasis 23 | . . . . . . . . 23 . Rewire 10 | . . . . . 10 . . . . Trap . | . . . . . . . . . . Miscellaneous . | . . . . . . . . . . Route ------- -11/Scrapyard -10/Materials (discovered 5 exits: *Mat x3 / *Min x2) -10/Mines (discovered 2 exits: *Mat x2) -9/Materials (discovered 5 exits: *Mat x3 / *Min x2) -9/Mines (discovered 3 exits: *Mat x2 / *Exi) -9/Exiles -8/Mines -8/Materials (discovered 3 exits: [*Fac x2] / Gar) -8/Garrison -8/Materials History --------- Turn | Location | Event 14 | -11/Scrapyard | Discovered new exit (range 15) 90 | -11/Scrapyard | Entered Materials 326 | -10/Materials | Build established: Mutant 424 | -10/Materials | Discovered new exit (range 12) 665 | -10/Materials | Discovered new exit (range 4) 688 | -10/Materials | Discovered new exit (range 15) 1022 | -10/Materials | Discovered new exit (range 5) 1215 | -10/Materials | Central database locked down 1240 | -10/Materials | Discovered new exit (range 12) 1265 | -10/Materials | Entered Mines 1340 | -10/Mines | Learned location of Zion (-6) 1430 | -10/Mines | Met a Derelict who couldn't figure out how to use a Trap Extractor 1523 | -10/Mines | Learned Materials terminal intel 1534 | -10/Mines | Excavation squad dispatched 1534 | -10/Mines | A large section of the Mines collapsed 1658 | -10/Mines | Discovered new exit (range 14) 2174 | -10/Mines | Discovered new exit (range 14) 2181 | -10/Mines | Core integrity fell below 50% 2221 | -10/Mines | Entered Materials 2221 | -9/Materials | Evolved 2 slots: Utility x2 2222 | -9/Materials | Loaded intel: 11 terminal locations 2773 | -9/Materials | Discovered new exit (range 16) 3222 | -9/Materials | Discovered new exit (range 9) 3247 | -9/Materials | Identified exit to Mines 3578 | -9/Materials | Discovered new exit (range 16) 3956 | -9/Materials | Build established: Hauler-Mutant 4263 | -9/Materials | Entered Mines 4272 | -9/Mines | Learned Materials garrison access intel 4317 | -9/Mines | Found a damaged Exp. Sensor Array with a note attached 4350 | -9/Mines | Found Prototype Device 4458 | -9/Mines | Discovered new exit (range 9) 4530 | -9/Mines | Learned 2 Materials zone layouts 4576 | -9/Mines | Assisted by bots powering up and referring to "LRC-V3" 4654 | -9/Mines | Discovered new exit (range 8) 4799 | -9/Mines | Received a Rocket Launcher from a helpful Derelict 4920 | -9/Mines | Deemed a non-threat by the Exiles lab entrance 4922 | -9/Mines | Discovered new exit (range 5) 4934 | -9/Mines | Entered Exiles 4934 | -9/Exiles | Found Exiles lab destroyed 4934 | -9/Exiles | Accompanied by 2 allies 5840 | -9/Exiles | Opened EX-Vault 5855 | -9/Exiles | Found Field Lobotomy Kit 6206 | -9/Exiles | Discovered new exit (range 12) 6230 | -9/Exiles | Entered Mines 6230 | -8/Mines | Accompanied by 5 allies 6230 | -8/Mines | Discovered new exit (range 10) 6732 | -8/Mines | Entered Materials 6732 | -8/Materials | Evolved 2 slots: Propulsion x1, Utility x1 6734 | -8/Materials | Loaded intel: 1 garrison access location 7540 | -8/Materials | Discovered new exit (range 16) 7923 | -8/Materials | Lost 3 parts (1u2w) 7947 | -8/Materials | Identified Exp. Sensor Array 8381 | -8/Materials | Discovered new exit (range 13) 8470 | -8/Materials | Repaired Exp. Sensor Array 8857 | -8/Materials | Identified exit to Garrison 8860 | -8/Materials | Entered Garrison 8869 | -8/Garrison | Installed Relay Interface Framework 8936 | -8/Garrison | Triggered checkpoint 8969 | -8/Garrison | Garrison Relay disabled 9057 | -8/Garrison | Core integrity fell below 50% 9250 | -8/Garrison | Triggered checkpoint 9343 | -8/Garrison | Core integrity fell below 20% 9398 | -8/Garrison | Lost 12 parts (7n3u2w) 9438 | -8/Garrison | Triggered checkpoint 9615 | -8/Garrison | Discovered new exit (range 9) 9629 | -8/Garrison | Entered Materials 9732 | -8/Materials | Destroyed by Y-45 Defender with Beam Rifle Last Messages --------------- >>Layout(Zone) Retrieving Zone 9R layout... Downloaded map data. >>Prototypes Downloading prototype IDs... Imp. Airjet Hvy. EM Shotgun >>Trojan(Botnet) Trojan loaded successfully. Testing... Terminal linked with 0 systems. Awaiting botnet instructions. 09674_ K-01 Serf collects debris. 09705_ K-01 Serf cleans the Fusion Modulator. 09708_ Acquired Prototype Energy Gun. 09708_ Identified Hvy. Particle Gun. 09709_ K-01 Serf collects debris. 09710_ Discarded Relay Coupler [Grunt]. 09714_ K-01 Serf collects debris. 09727_ Slug penetrates Door. Map ----- +----------------------------------------------------+ | ?????????????????????????????????????????????????? | | ?????????????????????????????????????????????????? | | ?????????????????????????????????????????????????? | | ??????????????????? ???????? #???????????????????? | | ??????????????????# ?????? #???????????????????? | | ??????????????????" ????" #???????????????????? | | ?????????????????#T ??""" #???????????????????? | | ??????????????????" """"" #???????????????????? | | ??????????????????# #???????????????????? | | ??????????? ????# #???????????????????? | | ??????????? ????# """ #???????????????????? | | ??????????# ????# """ #???????????????????? | | ??????????# #???# """ #???????????????????? | | ??????????# #???# #???????????????????? | | ??????????# #???#! #???????????????????? | | ??????????# #???# #???????????????????? | | ??????????# #???# [! ####### ????????? | | ??????????# #???# ????????? | | ??????????# #???# ! / T ?????????? | | ??????????# #???# ????????? | | ??????????# #???# ###;########## ????????? | | ??????????# #???# # Y h #???????????????????? | | ????####### ##??# # """ #?####??????????????? | | ????###### ! #### # """ #?### ??????????????? | | ????# # # """ #?####??????????????? | | ????# # Y@ #?####??????????????? | | ????# # + ! #?####??????????????? | | ????###### ###/###########?####??????????????? | | ????####### ### #?#######?####??????????????? | | ????#####?# #?# #?# ### ##??????????????? | | ??????????# #?# | #?# ??????????????? | | ??????????# #?# #?# ??????????????? | | ??????????# #?# #?# ??????????????? | | ??????????# #?# ""#?# ######??????????????? | | ??????????# #?# T"#####+###### ??????????????? | | ??????##### #?# ""# ## ??????????????? | | ??????#!! #?# / ## ??????????????? | | ??????#!! #?###### !!= # ??????????????? | | ??????#* * #??????# !! """ ## ??????????????? | | ??????#* * #??????# != """ ##""??????????????? | | ??????#!! #??????# """ ##"T??????????????? | | ??????#! ! #??????# """ ##""??????????????? | | ??????#########??????# ## ??????????????? | | ?????????????????????##############??????????????? | | ?????????????????????????????????????????????????? | | ?????????????????????????????????????????????????? | | ?????????????????????????????????????????????????? | | ?????????????????????????????????????????????????? | | ?????????????????????????????????????????????????? | | ?????????????????????????????????????????????????? | +----------------------------------------------------+ Best States ------------- Heat Dissipation 58 Coolant Potential 50 Energy Generation 18 Energy Capacity 560 Matter Stores 300 Matter Capacity 300 Sight Range 16 Terrain Scan Density 10 Armor Coverage 225 Resistance: KI 30 Evasion (%) 40 Recoil Reduction 3 Item Schematics ----------------- Hacking Suite | -9/Materials | Scanalyzed Exp. Sensor Array | -8/Materials | Scanalyzed Robot Schematics ------------------ None Fabricated ------------ Nothing Alien Tech Used ----------------- None Achievements -------------- None Challenges ------------ None Game ------ Seed ReactiveTrapPenetrator Manual? 0 Play Time 01:00:26 Cumulative 332.2 hours Start 2020.03.03 @ 21:19:42 End 2020.03.03 @ 22:19:17 Sessions 1 Manual Loads 0 Difficulty Rogue Special Mode None Game No. 242 Rogue 242 Adventurer 0 Explorer 0 Win Type - Total 3 Types 3/0/0/0/0/0/0 Lore% 76 Gallery% 83 Achievement% 61 Wizard Run 0 Options --------- ASCII 0 Keyboard 0 Movement Mouse Keybinds 1 Fullscreen 2 Font 24/Smallcaps Map View 76x50 Tactical HUD 1 Map Filters NONE Filters NONE Steam 1 RUN: 1d76ed23-393e-42d0-9e5a-e1c607b9693e